Workbook

Sheet Index
B1: DCF Valuation
B2: Sheet index
B4: # | C4: Worksheet
B5: 1 | C5: 1.Input -->
B6: =B5+1 -> 2 | C6: P&L assumptions
B7: =B6+1 -> 3 | C7: BS assumptions
B8: 4 | C8: 2.Output -->
B9: 5 | C9: P&L
B10: 6 | C10: BS
B11: 7 | C11: Cash Flow
B12: 8 | C12: DCF valuation
B13: 9 | C13: 3.Charts -->
B14: 10 | C14: Revenue&Ebitda
B15: 11 | C15: Cash flows
B16: 12 | C16: Ebitda bridge
B17: 13 | C17: Working capital
B18: 14 | C18: DCF results
B19: 15 | C19: 4. Sources -->
B20: 16 | C20: P&L source
B21: 17 | C21: BS source

Sheet 1.Input -->
B11: 1.Input -->

Sheet P&L assumptions
B1: P&L assumptions
G2: Case scenarios:
G3: Case 1: Optimistic case
G4: Case 2: Base case
B5: Selected case | C5: 1 | G5: Case 3: Worst case
B8: $ in thousands | C8: FY11 Actual | D8: FY12 Actual | E8: FY13 Actual | G8: FY14 Forecast | H8: FY15 Forecast | I8: FY16 Forecast | J8: FY17 Forecast | K8: FY18 Forecast
B9: Revenues | C9: ='P&L source'!D4 -> 177203 | D9: ='P&L source'!E4 -> 188618 | E9: ='P&L source'!F4 -> 208366 | G9: =+E9*(1+G10) -> 229202.6 | H9: =+G9*(1+H10) -> 252122.86 | I9: =+H9*(1+I10) -> 277335.146 | J9: 305068.6606 | K9: 335575.5267
B10: y-o-y growth % | C10: 0 | D10: =D9/C9-1 -> 0.0644176453 | E10: =E9/D9-1 -> 0.1046983851 | G10: =+CHOOSE($C$5,G11,G12,G13) -> 0.1 | H10: =+CHOOSE($C$5,H11,H12,H13) -> 0.1 | I10: 0.1 | J10: 0.1 | K10: 0.1
B11: Case 1 | G11: 0.1 | H11: 0.1 | I11: 0.1 | J11: 0.1 | K11: 0.1
B12: Case 2 | G12: 0.08 | H12: 0.08 | I12: 0.08 | J12: 0.08 | K12: 0.08
B13: Case 3 | G13: 0.04 | H13: 0.04 | I13: 0.04 | J13: 0.04 | K13: 0.04
B15: Other revenues | C15: ='P&L source'!D5 -> 3520 | D15: ='P&L source'!E5 -> 2416 | E15: ='P&L source'!F5 -> 2585 | G15: =+E15*(1+G16) -> 2585 | H15: =+G15*(1+H16) -> 2585 | I15: =+H15*(1+I16) -> 2585 | J15: =+I15*(1+J16) -> 2585 | K15: =+J15*(1+K16) -> 2585
B16: y-o-y growth % | C16: 0 | D16: =D15/C15-1 -> -0.3136363636 | E16: =E15/D15-1 -> 0.06995033113 | G16: =+CHOOSE($C$5,G17,G18,G19) -> 0 | H16: =+CHOOSE($C$5,H17,H18,H19) -> 0 | I16: 0 | J16: 0 | K16: 0
B17: Case 1 | G17: 0 | H17: 0 | I17: 0 | J17: 0 | K17: 0
B18: Case 2 | G18: 0 | H18: 0 | I18: 0 | J18: 0 | K18: 0
B19: Case 3 | G19: 0 | H19: 0 | I19: 0 | J19: 0 | K19: 0
B21: Cost of goods sold | C21: ='P&L source'!D8+'P&L source'!D9 -> -142394.3675 | D21: ='P&L source'!E8+'P&L source'!E9 -> -150572.1664 | E21: ='P&L source'!F8+'P&L source'!F9 -> -157523.1184 | G21: =G$9*G22 -> -174193.976 | H21: =H$9*H22 -> -191613.3736 | I21: -210774.711 | J21: -231852.1821 | K21: -255037.4003
B22: % of revenues | C22: =C21/C$9 -> -0.8035663474 | D22: =D21/D$9 -> -0.7982916074 | E22: =E21/E$9 -> -0.7559924288 | G22: =+CHOOSE($C$5,G23,G24,G25) -> -0.76 | H22: =+CHOOSE($C$5,H23,H24,H25) -> -0.76 | I22: -0.76 | J22: -0.76 | K22: -0.76
B23: Case 1 | G23: -0.76 | H23: -0.76 | I23: -0.76 | J23: -0.76 | K23: -0.76
B24: Case 2 | G24: -0.78 | H24: -0.78 | I24: -0.78 | J24: -0.78 | K24: -0.78
B25: Case 3 | G25: -0.8 | H25: -0.8 | I25: -0.8 | J25: -0.8 | K25: -0.8
B27: Operating expenses | C27: ='P&L source'!D10+'P&L source'!D11+'P&L source'!D12 -> -18011.3152 | D27: ='P&L source'!E10+'P&L source'!E11+'P&L source'!E12 -> -19247.8976 | E27: ='P&L source'!F10+'P&L source'!F11+'P&L source'!F12 -> -23867.008 | G27: =G$9*G28 -> -22920.26 | H27: =H$9*H28 -> -25212.286 | I27: -27733.5146 | J27: -30506.86606 | K27: -33557.55267
B28: % of revenues | C28: =C27/C$9 -> -0.1016422702 | D28: =D27/D$9 -> -0.1020469817 | E28: =E27/E$9 -> -0.114543678 | G28: =+CHOOSE($C$5,G29,G30,G31) -> -0.1 | H28: =+CHOOSE($C$5,H29,H30,H31) -> -0.1 | I28: -0.1 | J28: -0.1 | K28: -0.1
B29: Case 1 | G29: -0.1 | H29: -0.1 | I29: -0.1 | J29: -0.1 | K29: -0.1
B30: Case 2 | G30: -0.105 | H30: -0.105 | I30: -0.105 | J30: -0.105 | K30: -0.105
B31: Case 3 | G31: -0.11 | H31: -0.11 | I31: -0.11 | J31: -0.11 | K31: -0.11
B33: D&A | C33: ='P&L source'!D16 -> -2907.8 | D33: ='P&L source'!E16 -> -4649.8 | E33: ='P&L source'!F16 -> -6430.66 | G33: =G$9*G34 -> -4584.052 | H33: =H$9*H34 -> -5042.4572 | I33: -5546.70292 | J33: -6101.373212 | K33: -6711.510533
B34: % of revenues | C34: =C33/C$9 -> -0.01640942873 | D34: =D33/D$9 -> -0.02465194202 | E34: =E33/E$9 -> -0.03086232879 | G34: =+CHOOSE($C$5,G35,G36,G37) -> -0.02 | H34: =+CHOOSE($C$5,H35,H36,H37) -> -0.02 | I34: -0.02 | J34: -0.02 | K34: -0.02
B35: Case 1 | G35: -0.02 | H35: -0.02 | I35: -0.02 | J35: -0.02 | K35: -0.02
B36: Case 2 | G36: -0.025 | H36: -0.025 | I36: -0.025 | J36: -0.025 | K36: -0.025
B37: Case 3 | G37: -0.03 | H37: -0.03 | I37: -0.03 | J37: -0.03 | K37: -0.03
B39: Interest expenses | C39: ='P&L source'!D20 -> -1266.3 | D39: ='P&L source'!E20 -> -2190.9 | E39: ='P&L source'!F20 -> -2663.92 | G39: =+E39*(1+G40) -> -2663.92 | H39: =+G39*(1+H40) -> -2663.92 | I39: =+H39*(1+I40) -> -2663.92 | J39: =+I39*(1+J40) -> -2663.92 | K39: =+J39*(1+K40) -> -2663.92
B40: y-o-y growth % | C40: 0 | D40: =D39/C39-1 -> 0.7301587302 | E40: =E39/D39-1 -> 0.2159021407 | G40: =+CHOOSE($C$5,G41,G42,G43) -> 0 | H40: =+CHOOSE($C$5,H41,H42,H43) -> 0 | I40: 0 | J40: 0 | K40: 0
B41: Case 1 | G41: 0 | H41: 0 | I41: 0 | J41: 0 | K41: 0
B42: Case 2 | G42: 0 | H42: 0 | I42: 0 | J42: 0 | K42: 0
B43: Case 3 | G43: 0 | H43: 0 | I43: 0 | J43: 0 | K43: 0
B45: Extraordinary items | C45: ='P&L source'!D21 -> -317.58 | D45: ='P&L source'!E21 -> -864.3 | E45: ='P&L source'!F21 -> -320.26 | G45: =G$9*G46 -> 0 | H45: =H$9*H46 -> 0 | I45: 0 | J45: 0 | K45: 0
B46: % of revenues | C46: =C45/C$9 -> -0.001792181848 | D46: =D45/D$9 -> -0.004582277407 | E46: =E45/E$9 -> -0.001537006997 | G46: =+CHOOSE($C$5,G47,G48,G49) -> 0 | H46: =+CHOOSE($C$5,H47,H48,H49) -> 0 | I46: 0 | J46: 0 | K46: 0
B47: Case 1 | G47: 0 | H47: 0 | I47: 0 | J47: 0 | K47: 0
B48: Case 2 | G48: 0 | H48: 0 | I48: 0 | J48: 0 | K48: 0
B49: Case 3 | G49: 0 | H49: 0 | I49: 0 | J49: 0 | K49: 0
B51: Taxes | C51: ='P&L source'!D25 -> -3805.776 | D51: ='P&L source'!E25 -> -3050.192 | E51: ='P&L source'!F25 -> -3814.88
B52: % of EBT | G52: =+CHOOSE($C$5,G53,G54,G55) -> -0.18 | H52: =+CHOOSE($C$5,H53,H54,H55) -> -0.18 | I52: -0.18 | J52: -0.18 | K52: -0.18
B53: Case 1 | G53: -0.18 | H53: -0.18 | I53: -0.18 | J53: -0.18 | K53: -0.18
B54: Case 2 | G54: -0.2 | H54: -0.2 | I54: -0.2 | J54: -0.2 | K54: -0.2
B55: Case 3 | G55: -0.22 | H55: -0.22 | I55: -0.22 | J55: -0.22 | K55: -0.22

Sheet BS assumptions
B1: BS assumptions
B4: $ in thousands | C4: FY11 Actual | D4: FY12 Actual | E4: FY13 Actual | G4: FY14 Forecast | H4: FY15 Forecast | I4: FY16 Forecast | J4: FY17 Forecast | K4: FY18 Forecast
B5: Trade receivable | C5: ='BS source'!D11 -> 32883.6 | D5: ='BS source'!E11 -> 38556 | E5: ='BS source'!F11 -> 43581.6 | G5: =G6*'P&L assumptions'!G9/360 -> 47939.76 | H5: =H6*'P&L assumptions'!H9/360 -> 52733.736 | I5: =I6*'P&L assumptions'!I9/360 -> 58007.1096 | J5: =J6*'P&L assumptions'!J9/360 -> 63807.82056 | K5: =K6*'P&L assumptions'!K9/360 -> 70188.60262
B6: Days receivables (DSO) | C6: =C5/'P&L assumptions'!C9*360 -> 66.80527982 | D6: =D5/'P&L assumptions'!D9*360 -> 73.5887349 | E6: =E5/'P&L assumptions'!E9*360 -> 75.2971982 | G6: =$E$6 -> 75.2971982 | H6: =$E$6 -> 75.2971982 | I6: 75.2971982 | J6: 75.2971982 | K6: 75.2971982
B8: Inventory | C8: ='BS source'!D10 -> 31167.2 | D8: ='BS source'!E10 -> 36396.8 | E8: ='BS source'!F10 -> 46212 | G8: =-G9*'P&L assumptions'!G$21/360 -> 51102.67051 | H8: =-H9*'P&L assumptions'!H$21/360 -> 56212.93756 | I8: =-I9*'P&L assumptions'!I$21/360 -> 61834.23132 | J8: =-J9*'P&L assumptions'!J$21/360 -> 68017.65445 | K8: =-K9*'P&L assumptions'!K$21/360 -> 74819.4199
B9: Days inventory (DIO) | C9: =-C8/'P&L assumptions'!C$21*360 -> 78.79659989 | D9: =-D8/'P&L assumptions'!D$21*360 -> 87.02038573 | E9: =-E8/'P&L assumptions'!E$21*360 -> 105.6119265 | G9: =$E$9 -> 105.6119265 | H9: =$E$9 -> 105.6119265 | I9: 105.6119265 | J9: 105.6119265 | K9: 105.6119265
B11: Trade payable | C11: ='BS source'!J10 -> 15891.2 | D11: ='BS source'!K10 -> 26351.6 | E11: ='BS source'!L10 -> 36189.6 | G11: =-G12*'P&L assumptions'!G$21/360 -> 40019.58809 | H11: =-H12*'P&L assumptions'!H$21/360 -> 44021.5469 | I11: =-I12*'P&L assumptions'!I$21/360 -> 48423.70159 | J11: =-J12*'P&L assumptions'!J$21/360 -> 53266.07175 | K11: =-K12*'P&L assumptions'!K$21/360 -> 58592.67892
B12: Days payables (DPO) | C12: =-C11/'P&L assumptions'!C$21*360 -> 40.17597116 | D12: =-D11/'P&L assumptions'!D$21*360 -> 63.0035167 | E12: =-E11/'P&L assumptions'!E$21*360 -> 82.70694569 | G12: =$E$12 -> 82.70694569 | H12: =$E$12 -> 82.70694569 | I12: 82.70694569 | J12: 82.70694569 | K12: 82.70694569
B14: PP&E | C14: ='BS source'!D5 -> 45106.4 | D14: ='BS source'!E5 -> 49072.4 | E14: ='BS source'!F5 -> 56109.2 | G14: =G15*'P&L assumptions'!G$9 -> 59898.01877 | H14: =H15*'P&L assumptions'!H$9 -> 65887.82065 | I14: =I15*'P&L assumptions'!I$9 -> 72476.60271 | J14: =J15*'P&L assumptions'!J$9 -> 79724.26298 | K14: =K15*'P&L assumptions'!K$9 -> 87696.68928
B15: as a % of revenues | C15: =C14/'P&L assumptions'!C$9 -> 0.2545464806 | D15: =D14/'P&L assumptions'!D$9 -> 0.2601681706 | E15: =E14/'P&L assumptions'!E$9 -> 0.2692819366 | G15: =AVERAGE($C15:$E15) -> 0.2613321959 | H15: =AVERAGE($C15:$E15) -> 0.2613321959 | I15: 0.2613321959 | J15: 0.2613321959 | K15: 0.2613321959
B17: Other assets | C17: ='BS source'!D12 -> 8841.6 | D17: ='BS source'!E12 -> 11359.2 | E17: ='BS source'!F12 -> 17602.8 | G17: =G18*'P&L assumptions'!G$9 -> 14867.51848 | H17: =H18*'P&L assumptions'!H$9 -> 16354.27033 | I17: =I18*'P&L assumptions'!I$9 -> 17989.69737 | J17: =J18*'P&L assumptions'!J$9 -> 19788.6671 | K17: =K18*'P&L assumptions'!K$9 -> 21767.53381
B18: as a % of revenues | C18: =C17/'P&L assumptions'!C$9 -> 0.0498953178 | D18: =D17/'P&L assumptions'!D$9 -> 0.06022330849 | E18: =E17/'P&L assumptions'!E$9 -> 0.08448019351 | G18: =AVERAGE($C18:$E18) -> 0.06486627326 | H18: =AVERAGE($C18:$E18) -> 0.06486627326 | I18: 0.06486627326 | J18: 0.06486627326 | K18: 0.06486627326
B20: Other liabilities | C20: ='BS source'!J11+'BS source'!J12+'BS source'!J13 -> 5969.038667 | D20: ='BS source'!K11+'BS source'!K12+'BS source'!K13 -> 5800.356 | E20: ='BS source'!L11+'BS source'!L12+'BS source'!L13 -> 8473.446425 | G20: =G21*'P&L assumptions'!G$9 -> 8029.943844 | H20: =H21*'P&L assumptions'!H$9 -> 8832.938228 | I20: =I21*'P&L assumptions'!I$9 -> 9716.232051 | J20: =J21*'P&L assumptions'!J$9 -> 10687.85526 | K20: =K21*'P&L assumptions'!K$9 -> 11756.64078
B21: as a % of revenues | C21: =C20/'P&L assumptions'!C$9 -> 0.03368474951 | D21: =D20/'P&L assumptions'!D$9 -> 0.03075186886 | E21: =E20/'P&L assumptions'!E$9 -> 0.04066616639 | G21: =AVERAGE($C21:$E21) -> 0.03503426158 | H21: =AVERAGE($C21:$E21) -> 0.03503426158 | I21: 0.03503426158 | J21: 0.03503426158 | K21: 0.03503426158

Sheet 2.Output-->
B11: 2.Output -->

Sheet P&L
B1: P&L
B3: $ in thousands | C3: FY11 Actual | D3: FY12 Actual | E3: FY13 Actual | G3: FY14 Forecast | H3: FY15 Forecast | I3: FY16 Forecast | J3: FY17 Forecast | K3: FY18 Forecast | M3: Note
B4: Revenues | C4: =+SUMIF('P&L assumptions'!$B:$B,'P&L'!$B4,'P&L assumptions'!C:C) -> 177203 | D4: =+SUMIF('P&L assumptions'!$B:$B,'P&L'!$B4,'P&L assumptions'!D:D) -> 188618 | E4: =+SUMIF('P&L assumptions'!$B:$B,'P&L'!$B4,'P&L assumptions'!E:E) -> 208366 | G4: =+SUMIF('P&L assumptions'!$B:$B,'P&L'!$B4,'P&L assumptions'!G:G) -> 229202.6 | H4: =+SUMIF('P&L assumptions'!$B:$B,'P&L'!$B4,'P&L assumptions'!H:H) -> 252122.86 | I4: =+SUMIF('P&L assumptions'!$B:$B,'P&L'!$B4,'P&L assumptions'!I:I) -> 277335.146 | J4: =+SUMIF('P&L assumptions'!$B:$B,'P&L'!$B4,'P&L assumptions'!J:J) -> 305068.6606 | K4: =+SUMIF('P&L assumptions'!$B:$B,'P&L'!$B4,'P&L assumptions'!K:K) -> 335575.5267
B5: Other revenues | C5: =+SUMIF('P&L assumptions'!$B:$B,'P&L'!$B5,'P&L assumptions'!C:C) -> 3520 | D5: =+SUMIF('P&L assumptions'!$B:$B,'P&L'!$B5,'P&L assumptions'!D:D) -> 2416 | E5: =+SUMIF('P&L assumptions'!$B:$B,'P&L'!$B5,'P&L assumptions'!E:E) -> 2585 | G5: =+SUMIF('P&L assumptions'!$B:$B,'P&L'!$B5,'P&L assumptions'!G:G) -> 2585 | H5: =+SUMIF('P&L assumptions'!$B:$B,'P&L'!$B5,'P&L assumptions'!H:H) -> 2585 | I5: =+SUMIF('P&L assumptions'!$B:$B,'P&L'!$B5,'P&L assumptions'!I:I) -> 2585 | J5: =+SUMIF('P&L assumptions'!$B:$B,'P&L'!$B5,'P&L assumptions'!J:J) -> 2585 | K5: =+SUMIF('P&L assumptions'!$B:$B,'P&L'!$B5,'P&L assumptions'!K:K) -> 2585
B6: Total Revenues | C6: =+C4+C5 -> 180723 | D6: =+D4+D5 -> 191034 | E6: =+E4+E5 -> 210951 | G6: =+G4+G5 -> 231787.6 | H6: 254707.86 | I6: 279920.146 | J6: 307653.6606 | K6: 338160.5267
B8: Cost of goods sold | C8: =+SUMIF('P&L assumptions'!$B:$B,'P&L'!$B8,'P&L assumptions'!C:C) -> -142394.3675 | D8: =+SUMIF('P&L assumptions'!$B:$B,'P&L'!$B8,'P&L assumptions'!D:D) -> -150572.1664 | E8: =+SUMIF('P&L assumptions'!$B:$B,'P&L'!$B8,'P&L assumptions'!E:E) -> -157523.1184 | G8: =+SUMIF('P&L assumptions'!$B:$B,'P&L'!$B8,'P&L assumptions'!G:G) -> -174193.976 | H8: =+SUMIF('P&L assumptions'!$B:$B,'P&L'!$B8,'P&L assumptions'!H:H) -> -191613.3736 | I8: =+SUMIF('P&L assumptions'!$B:$B,'P&L'!$B8,'P&L assumptions'!I:I) -> -210774.711 | J8: =+SUMIF('P&L assumptions'!$B:$B,'P&L'!$B8,'P&L assumptions'!J:J) -> -231852.1821 | K8: =+SUMIF('P&L assumptions'!$B:$B,'P&L'!$B8,'P&L assumptions'!K:K) -> -255037.4003
B9: Gross Margin | C9: =+C6+C8 -> 38328.63253 | D9: =+D6+D8 -> 40461.8336 | E9: =+E6+E8 -> 53427.88157 | G9: =+G6+G8 -> 57593.624 | H9: 63094.4864 | I9: 69145.43504 | J9: 75801.47854 | K9: 83123.1264
B11: Operating expenses | C11: =+SUMIF('P&L assumptions'!$B:$B,'P&L'!$B11,'P&L assumptions'!C:C) -> -18011.3152 | D11: =+SUMIF('P&L assumptions'!$B:$B,'P&L'!$B11,'P&L assumptions'!D:D) -> -19247.8976 | E11: =+SUMIF('P&L assumptions'!$B:$B,'P&L'!$B11,'P&L assumptions'!E:E) -> -23867.008 | G11: =+SUMIF('P&L assumptions'!$B:$B,'P&L'!$B11,'P&L assumptions'!G:G) -> -22920.26 | H11: =+SUMIF('P&L assumptions'!$B:$B,'P&L'!$B11,'P&L assumptions'!H:H) -> -25212.286 | I11: =+SUMIF('P&L assumptions'!$B:$B,'P&L'!$B11,'P&L assumptions'!I:I) -> -27733.5146 | J11: =+SUMIF('P&L assumptions'!$B:$B,'P&L'!$B11,'P&L assumptions'!J:J) -> -30506.86606 | K11: =+SUMIF('P&L assumptions'!$B:$B,'P&L'!$B11,'P&L assumptions'!K:K) -> -33557.55267
B12: EBITDA | C12: =+C9+C11 -> 20317.31733 | D12: =+D9+D11 -> 21213.936 | E12: =+E9+E11 -> 29560.87357 | G12: =+G9+G11 -> 34673.364 | H12: 37882.2004 | I12: 41411.92044 | J12: 45294.61248 | K12: 49565.57373
B14: D&A | C14: =+SUMIF('P&L assumptions'!$B:$B,'P&L'!$B14,'P&L assumptions'!C:C) -> -2907.8 | D14: =+SUMIF('P&L assumptions'!$B:$B,'P&L'!$B14,'P&L assumptions'!D:D) -> -4649.8 | E14: =+SUMIF('P&L assumptions'!$B:$B,'P&L'!$B14,'P&L assumptions'!E:E) -> -6430.66 | G14: =+SUMIF('P&L assumptions'!$B:$B,'P&L'!$B14,'P&L assumptions'!G:G) -> -4584.052 | H14: =+SUMIF('P&L assumptions'!$B:$B,'P&L'!$B14,'P&L assumptions'!H:H) -> -5042.4572 | I14: =+SUMIF('P&L assumptions'!$B:$B,'P&L'!$B14,'P&L assumptions'!I:I) -> -5546.70292 | J14: =+SUMIF('P&L assumptions'!$B:$B,'P&L'!$B14,'P&L assumptions'!J:J) -> -6101.373212 | K14: =+SUMIF('P&L assumptions'!$B:$B,'P&L'!$B14,'P&L assumptions'!K:K) -> -6711.510533
B15: EBIT | C15: =+C12+C14 -> 17409.51733 | D15: =+D12+D14 -> 16564.136 | E15: =+E12+E14 -> 23130.21357 | G15: =+G12+G14 -> 30089.312 | H15: 32839.7432 | I15: 35865.21752 | J15: 39193.23927 | K15: 42854.0632
B17: Interest expenses | C17: =+SUMIF('P&L assumptions'!$B:$B,'P&L'!$B17,'P&L assumptions'!C:C) -> -1266.3 | D17: =+SUMIF('P&L assumptions'!$B:$B,'P&L'!$B17,'P&L assumptions'!D:D) -> -2190.9 | E17: =+SUMIF('P&L assumptions'!$B:$B,'P&L'!$B17,'P&L assumptions'!E:E) -> -2663.92 | G17: =+SUMIF('P&L assumptions'!$B:$B,'P&L'!$B17,'P&L assumptions'!G:G) -> -2663.92 | H17: =+SUMIF('P&L assumptions'!$B:$B,'P&L'!$B17,'P&L assumptions'!H:H) -> -2663.92 | I17: =+SUMIF('P&L assumptions'!$B:$B,'P&L'!$B17,'P&L assumptions'!I:I) -> -2663.92 | J17: =+SUMIF('P&L assumptions'!$B:$B,'P&L'!$B17,'P&L assumptions'!J:J) -> -2663.92 | K17: =+SUMIF('P&L assumptions'!$B:$B,'P&L'!$B17,'P&L assumptions'!K:K) -> -2663.92
B18: Extraordinary items | C18: =+SUMIF('P&L assumptions'!$B:$B,'P&L'!$B18,'P&L assumptions'!C:C) -> -317.58 | D18: =+SUMIF('P&L assumptions'!$B:$B,'P&L'!$B18,'P&L assumptions'!D:D) -> -864.3 | E18: =+SUMIF('P&L assumptions'!$B:$B,'P&L'!$B18,'P&L assumptions'!E:E) -> -320.26 | G18: =+SUMIF('P&L assumptions'!$B:$B,'P&L'!$B18,'P&L assumptions'!G:G) -> 0 | H18: =+SUMIF('P&L assumptions'!$B:$B,'P&L'!$B18,'P&L assumptions'!H:H) -> 0 | I18: =+SUMIF('P&L assumptions'!$B:$B,'P&L'!$B18,'P&L assumptions'!I:I) -> 0 | J18: =+SUMIF('P&L assumptions'!$B:$B,'P&L'!$B18,'P&L assumptions'!J:J) -> 0 | K18: =+SUMIF('P&L assumptions'!$B:$B,'P&L'!$B18,'P&L assumptions'!K:K) -> 0
B19: EBT | C19: =+C15+C17+C18 -> 15825.63733 | D19: =+D15+D17+D18 -> 13508.936 | E19: =+E15+E17+E18 -> 20146.03357 | G19: =+G15+G17+G18 -> 27425.392 | H19: 30175.8232 | I19: 33201.29752 | J19: 36529.31927 | K19: 40190.1432
B21: Taxes | C21: ='P&L assumptions'!C51 -> -3805.776 | D21: ='P&L assumptions'!D51 -> -3050.192 | E21: ='P&L assumptions'!E51 -> -3814.88 | G21: =G22*G19 -> -4936.57056 | H21: =H22*H19 -> -5431.648176 | I21: -5976.233554 | J21: -6575.277469 | K21: -7234.225776
B22: Tax rate | C22: =C21/C19 -> -0.2404816893 | D22: =D21/D19 -> -0.2257906914 | E22: -0.1893613443 | G22: ='P&L assumptions'!G52 -> -0.18 | H22: ='P&L assumptions'!H52 -> -0.18 | I22: ='P&L assumptions'!I52 -> -0.18 | J22: ='P&L assumptions'!J52 -> -0.18 | K22: ='P&L assumptions'!K52 -> -0.18
B24: Net Income | C24: =+C19+C21 -> 12019.86133 | D24: =+D19+D21 -> 10458.744 | E24: =+E19+E21 -> 16331.15357 | G24: =+G19+G21 -> 22488.82144 | H24: 24744.17502 | I24: 27225.06397 | J24: 29954.0418 | K24: 32955.91742
B56: 1

Sheet BS
B1: Balance Sheet
B3: $ in thousands | C3: FY11 Actual | D3: FY12 Actual | E3: FY13 Actual | G3: FY14 Forecast | H3: FY15 Forecast | I3: FY16 Forecast | J3: FY17 Forecast | K3: FY18 Forecast | M3: Note
B4: Intangible assets | C4: ='BS source'!D4 -> 5961.6 | D4: ='BS source'!E4 -> 5840 | E4: ='BS source'!F4 -> 5650 | G4: =$E$4 -> 5650 | H4: =$E$4 -> 5650 | I4: 5650 | J4: 5650 | K4: 5650 | M4: Flat
B5: PP&E | C5: =+SUMIF('BS assumptions'!$B:$B,BS!$B5,'BS assumptions'!C:C) -> 45106.4 | D5: =+SUMIF('BS assumptions'!$B:$B,BS!$B5,'BS assumptions'!D:D) -> 49072.4 | E5: =+SUMIF('BS assumptions'!$B:$B,BS!$B5,'BS assumptions'!E:E) -> 56109.2 | G5: =+SUMIF('BS assumptions'!$B:$B,BS!$B5,'BS assumptions'!G:G) -> 59898.01877 | H5: =+SUMIF('BS assumptions'!$B:$B,BS!$B5,'BS assumptions'!H:H) -> 65887.82065 | I5: =+SUMIF('BS assumptions'!$B:$B,BS!$B5,'BS assumptions'!I:I) -> 72476.60271 | J5: =+SUMIF('BS assumptions'!$B:$B,BS!$B5,'BS assumptions'!J:J) -> 79724.26298 | K5: =+SUMIF('BS assumptions'!$B:$B,BS!$B5,'BS assumptions'!K:K) -> 87696.68928
B6: Financial assets | C6: ='BS source'!D6 -> 8824 | D6: ='BS source'!E6 -> 9831 | E6: ='BS source'!F6 -> 10323 | G6: =$E$6 -> 10323 | H6: =$E$6 -> 10323 | I6: 10323 | J6: 10323 | K6: 10323 | M6: Flat
B8: Inventory | C8: =+SUMIF('BS assumptions'!$B:$B,BS!$B8,'BS assumptions'!C:C) -> 31167.2 | D8: =+SUMIF('BS assumptions'!$B:$B,BS!$B8,'BS assumptions'!D:D) -> 36396.8 | E8: =+SUMIF('BS assumptions'!$B:$B,BS!$B8,'BS assumptions'!E:E) -> 46212 | G8: =+SUMIF('BS assumptions'!$B:$B,BS!$B8,'BS assumptions'!G:G) -> 51102.67051 | H8: =+SUMIF('BS assumptions'!$B:$B,BS!$B8,'BS assumptions'!H:H) -> 56212.93756 | I8: =+SUMIF('BS assumptions'!$B:$B,BS!$B8,'BS assumptions'!I:I) -> 61834.23132 | J8: =+SUMIF('BS assumptions'!$B:$B,BS!$B8,'BS assumptions'!J:J) -> 68017.65445 | K8: =+SUMIF('BS assumptions'!$B:$B,BS!$B8,'BS assumptions'!K:K) -> 74819.4199
B9: Trade receivable | C9: =+SUMIF('BS assumptions'!$B:$B,BS!$B9,'BS assumptions'!C:C) -> 32883.6 | D9: =+SUMIF('BS assumptions'!$B:$B,BS!$B9,'BS assumptions'!D:D) -> 38556 | E9: =+SUMIF('BS assumptions'!$B:$B,BS!$B9,'BS assumptions'!E:E) -> 43581.6 | G9: =+SUMIF('BS assumptions'!$B:$B,BS!$B9,'BS assumptions'!G:G) -> 47939.76 | H9: =+SUMIF('BS assumptions'!$B:$B,BS!$B9,'BS assumptions'!H:H) -> 52733.736 | I9: =+SUMIF('BS assumptions'!$B:$B,BS!$B9,'BS assumptions'!I:I) -> 58007.1096 | J9: =+SUMIF('BS assumptions'!$B:$B,BS!$B9,'BS assumptions'!J:J) -> 63807.82056 | K9: =+SUMIF('BS assumptions'!$B:$B,BS!$B9,'BS assumptions'!K:K) -> 70188.60262
B10: Other assets | C10: =+SUMIF('BS assumptions'!$B:$B,BS!$B10,'BS assumptions'!C:C) -> 8841.6 | D10: =+SUMIF('BS assumptions'!$B:$B,BS!$B10,'BS assumptions'!D:D) -> 11359.2 | E10: =+SUMIF('BS assumptions'!$B:$B,BS!$B10,'BS assumptions'!E:E) -> 17602.8 | G10: =+SUMIF('BS assumptions'!$B:$B,BS!$B10,'BS assumptions'!G:G) -> 14867.51848 | H10: =+SUMIF('BS assumptions'!$B:$B,BS!$B10,'BS assumptions'!H:H) -> 16354.27033 | I10: =+SUMIF('BS assumptions'!$B:$B,BS!$B10,'BS assumptions'!I:I) -> 17989.69737 | J10: =+SUMIF('BS assumptions'!$B:$B,BS!$B10,'BS assumptions'!J:J) -> 19788.6671 | K10: =+SUMIF('BS assumptions'!$B:$B,BS!$B10,'BS assumptions'!K:K) -> 21767.53381
B12: Cash and equivalents | C12: ='BS source'!D14 -> 11791.2 | D12: ='BS source'!E14 -> 19408.8 | E12: ='BS source'!F14 -> 8173.6 | G12: =E12+'Cash Flow'!G30 -> 23746.53918 | H12: =G12+'Cash Flow'!H30 -> 35914.87062 | I12: =H12+'Cash Flow'!I30 -> 49306.50665 | J12: =I12+'Cash Flow'!J30 -> 64043.77771 | K12: =J12+'Cash Flow'!K30 -> 80261.24733 | M12: Opening cash + Net Cash Flow
B14: Total Assets | C14: =SUM(C4:C12) -> 144575.6 | D14: =SUM(D4:D12) -> 170464.2 | E14: 187652.2 | G14: =SUM(G4:G12) -> 213527.5069 | H14: 243076.6352 | I14: 275587.1476 | J14: 311355.1828 | K14: 350706.4929
B16: Trade payable | C16: =+SUMIF('BS assumptions'!$B:$B,BS!$B16,'BS assumptions'!C:C) -> 15891.2 | D16: =+SUMIF('BS assumptions'!$B:$B,BS!$B16,'BS assumptions'!D:D) -> 26351.6 | E16: =+SUMIF('BS assumptions'!$B:$B,BS!$B16,'BS assumptions'!E:E) -> 36189.6 | G16: =+SUMIF('BS assumptions'!$B:$B,BS!$B16,'BS assumptions'!G:G) -> 40019.58809 | H16: =+SUMIF('BS assumptions'!$B:$B,BS!$B16,'BS assumptions'!H:H) -> 44021.5469 | I16: =+SUMIF('BS assumptions'!$B:$B,BS!$B16,'BS assumptions'!I:I) -> 48423.70159 | J16: =+SUMIF('BS assumptions'!$B:$B,BS!$B16,'BS assumptions'!J:J) -> 53266.07175 | K16: =+SUMIF('BS assumptions'!$B:$B,BS!$B16,'BS assumptions'!K:K) -> 58592.67892
B17: Other liabilities | C17: =+SUMIF('BS assumptions'!$B:$B,BS!$B17,'BS assumptions'!C:C) -> 5969.038667 | D17: =+SUMIF('BS assumptions'!$B:$B,BS!$B17,'BS assumptions'!D:D) -> 5800.356 | E17: =+SUMIF('BS assumptions'!$B:$B,BS!$B17,'BS assumptions'!E:E) -> 8473.446425 | G17: =+SUMIF('BS assumptions'!$B:$B,BS!$B17,'BS assumptions'!G:G) -> 8029.943844 | H17: =+SUMIF('BS assumptions'!$B:$B,BS!$B17,'BS assumptions'!H:H) -> 8832.938228 | I17: =+SUMIF('BS assumptions'!$B:$B,BS!$B17,'BS assumptions'!I:I) -> 9716.232051 | J17: =+SUMIF('BS assumptions'!$B:$B,BS!$B17,'BS assumptions'!J:J) -> 10687.85526 | K17: =+SUMIF('BS assumptions'!$B:$B,BS!$B17,'BS assumptions'!K:K) -> 11756.64078
B19: Financial liabilities | C19: ='BS source'!J15+'BS source'!J16 -> 41293 | D19: ='BS source'!K15+'BS source'!K16 -> 50645.4 | E19: ='BS source'!L15+'BS source'!L16 -> 51120.8 | G19: =$E$19 -> 51120.8 | H19: =$E$19 -> 51120.8 | I19: 51120.8 | J19: 51120.8 | K19: 51120.8 | M19: No additional debt
B21: Shareholders' equity | C21: ='BS source'!J8 -> 81422.36133 | D21: ='BS source'!K8 -> 87666.844 | E21: ='BS source'!L8 -> 91868.35357 | G21: =E21+'P&L'!G24 -> 114357.175 | H21: =G21+'P&L'!H24 -> 139101.35 | I21: =H21+'P&L'!I24 -> 166326.414 | J21: =I21+'P&L'!J24 -> 196280.4558 | K21: =J21+'P&L'!K24 -> 229236.3732
B23: Total Liabilities & Equities | C23: =+SUM(C16:C21) -> 144575.6 | D23: =+SUM(D16:D21) -> 170464.2 | E23: 187652.2 | G23: =+SUM(G16:G21) -> 213527.5069 | H23: 243076.6352 | I23: 275587.1476 | J23: 311355.1828 | K23: 350706.4929
B26: Check | C26: =C14-C23 -> 0 | D26: =D14-D23 -> 0 | E26: =E14-E23 -> 0 | G26: =G14-G23 -> 0 | H26: 0 | I26: 0 | J26: 0 | K26: 0

Sheet Cash Flow
B1: Cash Flow
B2: .
B3: $ in thousands | D3: FY12 Actual | E3: FY13 Actual | G3: FY14 Forecast | H3: FY15 Forecast | I3: FY16 Forecast | J3: FY17 Forecast | K3: FY18 Forecast | M3: Note
B4: EBIT | C4: P&L | D4: ='P&L'!D15 -> 16564.136 | E4: ='P&L'!E15 -> 23130.21357 | G4: ='P&L'!G15 -> 30089.312 | H4: ='P&L'!H15 -> 32839.7432 | I4: ='P&L'!I15 -> 35865.21752 | J4: ='P&L'!J15 -> 39193.23927 | K4: ='P&L'!K15 -> 42854.0632
B5: Operating taxes | D5: =+D4*D6 -> -3740.02772 | E5: =+E4*E6 -> -4379.968336 | G5: =+G4*G6 -> -5416.07616 | H5: =+H4*H6 -> -5911.153776 | I5: =+I4*I6 -> -6455.739154 | J5: =+J4*J6 -> -7054.783069 | K5: =+K4*K6 -> -7713.731376
B6: Operating tax rate | C6: P&L | D6: ='P&L'!D22 -> -0.2257906914 | E6: ='P&L'!E22 -> -0.1893613443 | G6: ='P&L'!G22 -> -0.18 | H6: ='P&L'!H22 -> -0.18 | I6: ='P&L'!I22 -> -0.18 | J6: ='P&L'!J22 -> -0.18 | K6: ='P&L'!K22 -> -0.18
B7: NOPAT | D7: =SUM(D4:D5) -> 12824.10828 | E7: =SUM(E4:E5) -> 18750.24524 | G7: =SUM(G4:G5) -> 24673.23584 | H7: =SUM(H4:H5) -> 26928.58942 | I7: =SUM(I4:I5) -> 29409.47837 | J7: =SUM(J4:J5) -> 32138.4562 | K7: =SUM(K4:K5) -> 35140.33182
B9: Add-back D&A | C9: P&L | D9: =-'P&L'!D14 -> 4649.8 | E9: =-'P&L'!E14 -> 6430.66 | G9: =-'P&L'!G14 -> 4584.052 | H9: =-'P&L'!H14 -> 5042.4572 | I9: =-'P&L'!I14 -> 5546.70292 | J9: =-'P&L'!J14 -> 6101.373212 | K9: =-'P&L'!K14 -> 6711.510533
B10: Gross Cash Flow | D10: =+D7+D9 -> 17473.90828 | E10: =+E7+E9 -> 25180.90524 | G10: =+G7+G9 -> 29257.28784 | H10: =+H7+H9 -> 31971.04662 | I10: =+I7+I9 -> 34956.18129 | J10: =+J7+J9 -> 38239.82942 | K10: =+K7+K9 -> 41851.84236 | M10: 1)
B12: Inventory | C12: BS | D12: =-(BS!D8-BS!C8) -> -5229.6 | E12: =-(BS!E8-BS!D8) -> -9815.2 | G12: =-(BS!G8-BS!E8) -> -4890.670512 | H12: =-(BS!H8-BS!G8) -> -5110.267051 | I12: =-(BS!I8-BS!H8) -> -5621.293756 | J12: =-(BS!J8-BS!I8) -> -6183.423132 | K12: =-(BS!K8-BS!J8) -> -6801.765445
B13: Trade receivables | C13: BS | D13: =-(BS!D9-BS!C9) -> -5672.4 | E13: =-(BS!E9-BS!D9) -> -5025.6 | G13: =-(BS!G9-BS!E9) -> -4358.16 | H13: =-(BS!H9-BS!G9) -> -4793.976 | I13: =-(BS!I9-BS!H9) -> -5273.3736 | J13: =-(BS!J9-BS!I9) -> -5800.71096 | K13: =-(BS!K9-BS!J9) -> -6380.782056
B14: Trade payables | C14: BS | D14: =BS!D16-BS!C16 -> 10460.4 | E14: =BS!E16-BS!D16 -> 9838 | G14: =BS!G16-BS!E16 -> 3829.988089 | H14: =BS!H16-BS!G16 -> 4001.958809 | I14: =BS!I16-BS!H16 -> 4402.15469 | J14: =BS!J16-BS!I16 -> 4842.370159 | K14: =BS!K16-BS!J16 -> 5326.607175
B15: Investments in working capital | D15: =SUM(D12:D14) -> -441.6 | E15: =SUM(E12:E14) -> -5002.8 | G15: =SUM(G12:G14) -> -5418.842423 | H15: =SUM(H12:H14) -> -5902.284242 | I15: =SUM(I12:I14) -> -6492.512667 | J15: =SUM(J12:J14) -> -7141.763933 | K15: =SUM(K12:K14) -> -7855.940327 | M15: 2)
B16: Investments in other assets/liabilities | C16: BS | D16: =-(BS!D10-BS!C10)+BS!D17-BS!C17 -> -2686.282667 | E16: =-(BS!E10-BS!D10)+BS!E17-BS!D17 -> -3570.509575 | G16: =-(BS!G10-BS!E10)+BS!G17-BS!E17 -> 2291.778934 | H16: =-(BS!H10-BS!G10)+BS!H17-BS!G17 -> -683.757464 | I16: =-(BS!I10-BS!H10)+BS!I17-BS!H17 -> -752.1332104 | J16: =-(BS!J10-BS!I10)+BS!J17-BS!I17 -> -827.3465315 | K16: =-(BS!K10-BS!J10)+BS!K17-BS!J17 -> -910.0811846 | M16: 3)
B18: Capex | C18: BS, P&L | D18: =-(BS!D5-BS!C5)+'P&L'!D14 -> -8615.8 | E18: =-(BS!E5-BS!D5)+'P&L'!E14 -> -13467.46 | G18: =-(BS!G5-BS!E5)+'P&L'!G14 -> -8372.870769 | H18: =-(BS!H5-BS!G5)+'P&L'!H14 -> -11032.25908 | I18: =-(BS!I5-BS!H5)+'P&L'!I14 -> -12135.48498 | J18: =-(BS!J5-BS!I5)+'P&L'!J14 -> -13349.03348 | K18: =-(BS!K5-BS!J5)+'P&L'!K14 -> -14683.93683 | M18: 4)
B19: Other investments | C19: BS | D19: =-(BS!D4-BS!C4)-(BS!D6-BS!C6) -> -885.4 | E19: =-(BS!E4-BS!D4)-(BS!E6-BS!D6) -> -302 | G19: =-(BS!G4-BS!E4)-(BS!G6-BS!E6) -> 0 | H19: =-(BS!H4-BS!G4)-(BS!H6-BS!G6) -> 0 | I19: =-(BS!I4-BS!H4)-(BS!I6-BS!H6) -> 0 | J19: =-(BS!J4-BS!I4)-(BS!J6-BS!I6) -> 0 | K19: =-(BS!K4-BS!J4)-(BS!K6-BS!J6) -> 0 | M19: 5)
B21: Extraordinary items | C21: P&L | D21: ='P&L'!D18 -> -864.3 | E21: ='P&L'!E18 -> -320.26 | G21: ='P&L'!G18 -> 0 | H21: ='P&L'!H18 -> 0 | I21: ='P&L'!I18 -> 0 | J21: ='P&L'!J18 -> 0 | K21: ='P&L'!K18 -> 0 | M21: 6)
B23: UFCF | D23: =D10+D15+D16+D18+D19+D21 -> 3980.525613 | E23: =E10+E15+E16+E18+E19+E21 -> 2517.875664 | G23: =G10+G15+G16+G18+G19+G21 -> 17757.35358 | H23: =H10+H15+H16+H18+H19+H21 -> 14352.74584 | I23: =I10+I15+I16+I18+I19+I21 -> 15576.05042 | J23: =J10+J15+J16+J18+J19+J21 -> 16921.68547 | K23: =K10+K15+K16+K18+K19+K21 -> 18401.88401 | M23: 1)+2)+3)+4)+5)+6)
B25: Interest expenses | C25: P&L | D25: ='P&L'!D17 -> -2190.9 | E25: ='P&L'!E17 -> -2663.92 | G25: ='P&L'!G17 -> -2663.92 | H25: ='P&L'!H17 -> -2663.92 | I25: ='P&L'!I17 -> -2663.92 | J25: ='P&L'!J17 -> -2663.92 | K25: ='P&L'!K17 -> -2663.92 | M25: 7)
B26: Delta Taxes vs. Operating taxes | D26: ='P&L'!D21-'Cash Flow'!D5 -> 689.8357205 | E26: ='P&L'!E21-'Cash Flow'!E5 -> 565.0883364 | G26: ='P&L'!G21-'Cash Flow'!G5 -> 479.5056 | H26: ='P&L'!H21-'Cash Flow'!H5 -> 479.5056 | I26: ='P&L'!I21-'Cash Flow'!I5 -> 479.5056 | J26: ='P&L'!J21-'Cash Flow'!J5 -> 479.5056 | K26: ='P&L'!K21-'Cash Flow'!K5 -> 479.5056 | M26: 8)
B27: Delta Financial liabilities | C27: BS | D27: =BS!D19-BS!C19 -> 9352.4 | E27: =BS!E19-BS!D19 -> 475.4 | G27: =BS!G19-BS!E19 -> 0 | H27: =BS!H19-BS!G19 -> 0 | I27: =BS!I19-BS!H19 -> 0 | J27: =BS!J19-BS!I19 -> 0 | K27: =BS!K19-BS!J19 -> 0 | M27: 9)
B28: Delta equity incl. dividends | C28: BS | D28: =BS!D21-BS!C21-'P&L'!D24 -> -4214.261333 | E28: =BS!E21-BS!D21-'P&L'!E24 -> -12129.644 | G28: =BS!G21-BS!E21-'P&L'!G24 -> 0 | H28: =BS!H21-BS!G21-'P&L'!H24 -> 0 | I28: =BS!I21-BS!H21-'P&L'!I24 -> 0 | J28: =BS!J21-BS!I21-'P&L'!J24 -> 0 | K28: =BS!K21-BS!J21-'P&L'!K24 -> 0 | M28: 10)
B30: Net Cash Flow | D30: =SUM(D23,D25:D28) -> 7617.6 | E30: =SUM(E23,E25:E28) -> -11235.2 | G30: =SUM(G23,G25:G28) -> 15572.93918 | H30: =SUM(H23,H25:H28) -> 12168.33144 | I30: =SUM(I23,I25:I28) -> 13391.63602 | J30: =SUM(J23,J25:J28) -> 14737.27107 | K30: =SUM(K23,K25:K28) -> 16217.46961 | M30: 1)+2)+3)+4)+5)+6)+7)+8)+9)+10)
B32: Opening cash | D32: =BS!C12 -> 11791.2 | E32: =BS!D12 -> 19408.8 | G32: =BS!E12 -> 8173.6 | H32: =BS!G12 -> 23746.53918 | I32: =BS!H12 -> 35914.87062 | J32: =BS!I12 -> 49306.50665 | K32: =BS!J12 -> 64043.77771
B33: Closing cash | D33: =D30+D32 -> 19408.8 | E33: =E30+E32 -> 8173.6 | G33: =G30+G32 -> 23746.53918 | H33: =H30+H32 -> 35914.87062 | I33: =I30+I32 -> 49306.50665 | J33: =J30+J32 -> 64043.77771 | K33: =K30+K32 -> 80261.24733
B35: Check | D35: =BS!D12 -> 19408.8 | E35: =BS!E12 -> 8173.6 | G35: =BS!G12 -> 23746.53918 | H35: =BS!H12 -> 35914.87062 | I35: =BS!I12 -> 49306.50665 | J35: =BS!J12 -> 64043.77771 | K35: =BS!K12 -> 80261.24733
D36: =D33-D35 -> 5.456968211e-11 | E36: =E33-E35 -> 1.091393642e-11 | G36: =G33-G35 -> 0 | H36: =H33-H35 -> 0 | I36: =I33-I35 -> 0 | J36: =J33-J35 -> 0 | K36: =K33-K35 -> 0

Sheet DCF valuation
B1: DCF Valuation
B4: $ in thousands | C4: FY11 Actual | D4: FY12 Actual | E4: FY13 Actual | G4: FY14 Forecast | H4: FY15 Forecast | I4: FY16 Forecast | J4: FY17 Forecast | K4: FY18 Forecast | M4: Note

Sheet 3.Charts -->
B11: 3.Charts -->

Sheet Revenues&Ebitda
B1: Revenues & EBITDA

Sheet Cash flows
B1: Cash flows

Sheet Ebitda bridge
B1: Ebitda bridge

Sheet Working capital
B1: Working capital

Sheet DCF results
B1: DCF results

Sheet 4.Sources -->
B11: 4.Sources -->

Sheet P&L source
B1: P&L source
B3: USD in thousands | D3: 2011 Act | E3: 2012 Act | F3: 2013 Act
B4: Revenue from sales and services | D4: 177203 | E4: 188618 | F4: 208366
B5: Other revenue | D5: 3520 | E5: 2416 | F5: 2585
B6: Revenue | D6: =D4+D5 -> 180723 | E6: =E4+E5 -> 191034 | F6: =F4+F5 -> 210951
B8: Raw materials | D8: -139903.0395 | E8: -138922.9888 | F8: -150080.4688
B9: Direct costs | D9: -2491.328 | E9: -11649.1776 | F9: -7442.6496
B10: Cost for services | D10: -16389.5936 | E10: -17878.3104 | F10: -22293.312
B11: Lease costs | D11: -290.7264 | E11: -246.1312 | F11: -120.9216
B12: Other operating expenses | D12: -1330.9952 | E12: -1123.456 | F12: -1452.7744
B14: EBITDA | D14: =D6+SUM(D8:D12) -> 20317.31733 | E14: =E6+SUM(E8:E12) -> 21213.936 | F14: =F6+SUM(F8:F12) -> 29560.87357
B16: D&A | D16: -2907.8 | E16: -4649.8 | F16: -6430.66
B18: EBIT | D18: =D14+D16 -> 17409.51733 | E18: =E14+E16 -> 16564.136 | F18: =F14+F16 -> 23130.21357
B20: Financial income/expenses | D20: -1266.3 | E20: -2190.9 | F20: -2663.92
B21: Extraordinary income | D21: -317.58 | E21: -864.3 | F21: -320.26
B23: EBT | D23: =D18+D21+D20 -> 15825.63733 | E23: =E18+E21+E20 -> 13508.936 | F23: =F18+F21+F20 -> 20146.03357
B25: Taxes | D25: -3805.776 | E25: -3050.192 | F25: -3814.88
B27: Net Income | D27: =D23+D25 -> 12019.86133 | E27: =E23+E25 -> 10458.744 | F27: =F23+F25 -> 16331.15357

Sheet BS source
B1: BS source
B3: USD in thousands | D3: 31Dec11 Act | E3: 31Dec12 Act | F3: 31Dec13 Act | H3: USD in thousands | J3: 31Dec11 Act | K3: 31Dec12 Act | L3: 31Dec13 Act
B4: Intangible assets | D4: 5961.6 | E4: 5840 | F4: 5650 | H4: Share Capital | J4: 6784.8 | K4: 6800 | L4: 7508
B5: PP&E | D5: 45106.4 | E5: 49072.4 | F5: 56109.2 | H5: Reserves | J5: 46224 | K5: 44414.4 | L5: 46513.2
B6: Financial assets | D6: 8824 | E6: 9831 | F6: 10323 | H6: Retained earnings | J6: 16393.7 | K6: 25993.7 | L6: 21516
H7: Profit/(loss) for the year | J7: 12019.86133 | K7: 10458.744 | L7: 16331.15357
B8: Fixed assets | D8: =D6+D5+D4 -> 59892 | E8: =E6+E5+E4 -> 64743.4 | F8: =F6+F5+F4 -> 72082.2 | H8: Total Equity | J8: =SUM(J4:J7) -> 81422.36133 | K8: =SUM(K4:K7) -> 87666.844 | L8: =SUM(L4:L7) -> 91868.35357
B10: Inventory | D10: 31167.2 | E10: 36396.8 | F10: 46212 | H10: Trade payable | J10: 15891.2 | K10: 26351.6 | L10: 36189.6
B11: Trade receivables | D11: 32883.6 | E11: 38556 | F11: 43581.6 | H11: Other liabilities | J11: 5315 | K11: 4334 | L11: 6473.046425
B12: Other assets | D12: 8841.6 | E12: 11359.2 | F12: 17602.8 | H12: Deferred taxes | J12: 478.8386667 | K12: 1217.956 | L12: 1760.4
H13: Provisions for retirement benefits | J13: 175.2 | K13: 248.4 | L13: 240
B14: Cash and equivalents | D14: 11791.2 | E14: 19408.8 | F14: 8173.6
B15: Non fixed assets | D15: =+D14+D12+D11+D10 -> 84683.6 | E15: =+E14+E12+E11+E10 -> 105720.8 | F15: =+F14+F12+F11+F10 -> 115570 | H15: Bank borrowings | J15: 37402.6 | K15: 45594.6 | L15: 50680.4
H16: Other Financial liabilities | J16: 3890.4 | K16: 5050.8 | L16: 440.4
H17: Total Liabilities | J17: =J16+J15+SUM(J10:J13) -> 63153.23867 | K17: =K16+K15+SUM(K10:K13) -> 82797.356 | L17: =L16+L15+SUM(L10:L13) -> 95783.84643
B19: Total Assets | D19: =D15+D8 -> 144575.6 | E19: =E15+E8 -> 170464.2 | F19: =F15+F8 -> 187652.2 | H19: Total Liabilities & Equity | J19: =J17+J8 -> 144575.6 | K19: =K17+K8 -> 170464.2 | L19: =L17+L8 -> 187652.2
J22: =J19-D19 -> 0 | K22: =K19-E19 -> 0 | L22: =L19-F19 -> 0
